[Event "Titled Tuesday Blitz February 22 Late 2022"]
[White "Berdychevskaya, Natasha"]
[Black "Vargas Pereda, Jesus Manue"]
[WhiteFideId "4159322"]
[BlackFideId "5115710"]
[WhiteElo "1780"]
[BlackElo "1760"]
[Result "1-0"]
[Round "10"]
[TimeControl "180+1"]
[Date "2022.02.23"]
[WhiteClock "0:00:17"]
[BlackClock "0:00:22"]

1. Nf3 {[%clk 0:03:00]}  Nf6 {[%clk 0:02:59]} 2. g3 {[%clk 0:03:01]}  g6 {[%clk 0:02:59]} 3. Bg2 {[%clk 0:03:01]}  Bg7 {[%clk 0:02:59]} 4. O-O {[%clk 0:03:02]}  O-O {[%clk 0:02:59]} 5. d4 {[%clk 0:03:02]}  d6 {[%clk 0:02:58]} 6. c4 {[%clk 0:03:02]}  Nbd7 {[%clk 0:02:53]} 7. Nc3 {[%clk 0:03:02]}  e5 {[%clk 0:02:53]} 8. e3 {[%clk 0:03:01]}  exd4 {[%clk 0:02:52]} 9. exd4 {[%clk 0:03:01]}  Re8 {[%clk 0:02:50]} 10. Bf4 {[%clk 0:02:50]}  Nh5 {[%clk 0:02:42]} 11. Be3 {[%clk 0:02:48]}  Nhf6 {[%clk 0:02:40]} 12. Rc1 {[%clk 0:02:48]}  c6 {[%clk 0:02:37]} 13. Re1 {[%clk 0:02:38]}  Nf8 {[%clk 0:02:37]} 14. Qb3 {[%clk 0:02:33]}  Qb6 {[%clk 0:02:21]} 15. Qxb6 {[%clk 0:02:30]}  axb6 {[%clk 0:02:21]} 16. Bf4 {[%clk 0:02:27]}  Rxe1+ {[%clk 0:02:05]} 17. Rxe1 {[%clk 0:02:26]}  Be6 {[%clk 0:01:56]} 18. b3 {[%clk 0:02:10]}  d5 {[%clk 0:01:48]} 19. Ne5 {[%clk 0:01:53]}  dxc4 {[%clk 0:01:42]} 20. bxc4 {[%clk 0:01:52]}  Nh5 {[%clk 0:01:41]} 21. d5 {[%clk 0:01:47]}  Nxf4 {[%clk 0:01:35]} 22. gxf4 {[%clk 0:01:47]}  cxd5 {[%clk 0:01:27]} 23. cxd5 {[%clk 0:01:46]}  Bf5 {[%clk 0:01:27]} 24. d6 {[%clk 0:01:37]}  Nd7 {[%clk 0:01:25]} 25. Bxb7 {[%clk 0:01:29]}  Ra3 {[%clk 0:01:18]} 26. Nd5 {[%clk 0:01:09]}  Nxe5 {[%clk 0:01:04]} 27. fxe5 {[%clk 0:01:08]}  Rxa2 {[%clk 0:01:03]} 28. Ne7+ {[%clk 0:00:59]}  Kf8 {[%clk 0:00:55]} 29. Nxf5 {[%clk 0:00:34]}  gxf5 {[%clk 0:00:55]} 30. Rd1 {[%clk 0:00:34]}  Ke8 {[%clk 0:00:55]} 31. f4 {[%clk 0:00:27]}  Kd7 {[%clk 0:00:54]} 32. Bd5 {[%clk 0:00:26]}  Rb2 {[%clk 0:00:38]} 33. Bxf7 {[%clk 0:00:26]}  Bh6 {[%clk 0:00:31]} 34. e6+ {[%clk 0:00:25]}  Kc6 {[%clk 0:00:29]} 35. e7 {[%clk 0:00:22]}  Bxf4 {[%clk 0:00:29]} 36. e8=Q+ {[%clk 0:00:21]}  Kc5 {[%clk 0:00:28]} 37. d7 {[%clk 0:00:19]}  Be3+ {[%clk 0:00:26]} 38. Kh1 {[%clk 0:00:18]}  Bf4 {[%clk 0:00:26]} 39. d8=Q {[%clk 0:00:18]}  Rxh2+ {[%clk 0:00:26]} 40. Kg1 {[%clk 0:00:17]}  Bg3 {[%clk 0:00:22]} 41. Qd5+ {[%clk 0:00:17]}  Kb4 {[%clk 0:00:22]} 42. Qeb5+ {[%clk 0:00:17]}  Ka3 {[%clk 0:00:22]} 43. Qdb3# {[%clk 0:00:17]} 1-0


[Site "https://www.chess.com"]

[Event "Titled Tuesday Blitz February 22 Late 2022"]
[White "Budrewicz, Krzysztof"]
[Black "Toncheva, Nadya"]
[WhiteFideId "1127950"]
[BlackFideId "2924056"]
[WhiteElo "2248"]
[BlackElo "1920"]
[Result "1-0"]
[Round "10"]
[TimeControl "180+1"]
[Date "2022.02.23"]
[WhiteClock "0:02:04"]
[BlackClock "0:00:06"]

1. d4 {[%clk 0:03:00]}  Nf6 {[%clk 0:02:56]} 2. c4 {[%clk 0:03:00]}  e6 {[%clk 0:02:57]} 3. a3 {[%clk 0:02:59]}  c5 {[%clk 0:02:57]} 4. d5 {[%clk 0:02:57]}  exd5 {[%clk 0:02:57]} 5. cxd5 {[%clk 0:02:58]}  d6 {[%clk 0:02:58]} 6. Nc3 {[%clk 0:02:59]}  g6 {[%clk 0:02:58]} 7. g3 {[%clk 0:02:59]}  Bg7 {[%clk 0:02:58]} 8. Bg2 {[%clk 0:03:00]}  Na6 {[%clk 0:02:53]} 9. Nf3 {[%clk 0:03:00]}  Nc7 {[%clk 0:02:52]} 10. O-O {[%clk 0:03:00]}  O-O {[%clk 0:02:51]} 11. e4 {[%clk 0:03:01]}  b5 {[%clk 0:02:50]} 12. Re1 {[%clk 0:03:00]}  Rb8 {[%clk 0:02:47]} 13. e5 {[%clk 0:02:57]}  dxe5 {[%clk 0:02:47]} 14. Nxe5 {[%clk 0:02:57]}  Rb6 {[%clk 0:02:14]} 15. Nc6 {[%clk 0:02:54]}  Qd7 {[%clk 0:02:06]} 16. Re7 {[%clk 0:02:53]}  Qxe7 {[%clk 0:00:48]} 17. Nxe7+ {[%clk 0:02:52]}  Kh8 {[%clk 0:00:49]} 18. Bf4 {[%clk 0:02:45]}  Na6 {[%clk 0:00:34]} 19. Nxc8 {[%clk 0:02:37]}  Rxc8 {[%clk 0:00:34]} 20. d6 {[%clk 0:02:38]}  Nd7 {[%clk 0:00:30]} 21. Nd5 {[%clk 0:02:37]}  Rbb8 {[%clk 0:00:26]} 22. Ne7 {[%clk 0:02:38]}  Re8 {[%clk 0:00:26]} 23. Bc6 {[%clk 0:02:36]}  Rbd8 {[%clk 0:00:25]} 24. Bxb5 {[%clk 0:02:35]}  Nab8 {[%clk 0:00:24]} 25. Qd2 {[%clk 0:02:34]}  Bd4 {[%clk 0:00:23]} 26. Re1 {[%clk 0:02:29]}  a6 {[%clk 0:00:22]} 27. Ba4 {[%clk 0:02:28]}  Kg7 {[%clk 0:00:21]} 28. Be3 {[%clk 0:02:25]}  Bf6 {[%clk 0:00:20]} 29. Qc2 {[%clk 0:02:20]}  Ne5 {[%clk 0:00:20]} 30. Bxe8 {[%clk 0:02:11]}  Nf3+ {[%clk 0:00:19]} 31. Kf1 {[%clk 0:02:11]}  Nxe1 {[%clk 0:00:18]} 32. Kxe1 {[%clk 0:02:11]}  Rxe8 {[%clk 0:00:19]} 33. Qxc5 {[%clk 0:02:09]}  Nd7 {[%clk 0:00:18]} 34. Qc6 {[%clk 0:02:09]}  Ne5 {[%clk 0:00:07]} 35. Qxe8 {[%clk 0:02:08]}  Nd3+ {[%clk 0:00:05]} 36. Ke2 {[%clk 0:02:07]}  Nxb2 {[%clk 0:00:06]} 37. Qg8# {[%clk 0:02:04]} 1-0


[Site "https://www.chess.com"]

[Event "Titled Tuesday Blitz February 22 Late 2022"]
[White "Cardoso Cardoso, Jose Gabriel"]
[Black "Domingo Nunez, Alejandro"]
[WhiteFideId "4430492"]
[BlackFideId "22245561"]
[WhiteElo "2451"]
[BlackElo "2215"]
[Result "1-0"]
[Round "10"]
[TimeControl "180+1"]
[Date "2022.02.22"]
[WhiteClock "0:01:06"]
[BlackClock "0:00:21"]

1. d4 {[%clk 0:03:00]}  g6 {[%clk 0:02:59]} 2. h4 {[%clk 0:02:59]}  Nf6 {[%clk 0:02:49]} 3. Nc3 {[%clk 0:02:55]}  d5 {[%clk 0:02:48]} 4. Bg5 {[%clk 0:02:55]}  Nbd7 {[%clk 0:02:46]} 5. e3 {[%clk 0:02:54]}  a6 {[%clk 0:02:46]} 6. h5 {[%clk 0:02:53]}  Nxh5 {[%clk 0:02:44]} 7. Nxd5 {[%clk 0:02:53]}  Ndf6 {[%clk 0:02:44]} 8. Bxf6 {[%clk 0:02:46]}  Nxf6 {[%clk 0:02:44]} 9. Nxf6+ {[%clk 0:02:45]}  exf6 {[%clk 0:02:44]} 10. Bd3 {[%clk 0:02:43]}  Bg7 {[%clk 0:02:45]} 11. Ne2 {[%clk 0:02:41]}  f5 {[%clk 0:02:45]} 12. c3 {[%clk 0:02:39]}  O-O {[%clk 0:02:41]} 13. Nf4 {[%clk 0:02:40]}  c5 {[%clk 0:02:41]} 14. Qf3 {[%clk 0:02:34]}  cxd4 {[%clk 0:02:37]} 15. cxd4 {[%clk 0:02:33]}  Qa5+ {[%clk 0:02:36]} 16. Kf1 {[%clk 0:02:33]}  Rd8 {[%clk 0:02:17]} 17. Bc4 {[%clk 0:02:30]}  Qc7 {[%clk 0:01:51]} 18. Bb3 {[%clk 0:02:26]}  Bd7 {[%clk 0:01:45]} 19. Qh3 {[%clk 0:01:44]}  Bb5+ {[%clk 0:01:45]} 20. Kg1 {[%clk 0:01:43]}  Qb6 {[%clk 0:01:27]} 21. Qxh7+ {[%clk 0:01:39]}  Kf8 {[%clk 0:01:28]} 22. Rh3 {[%clk 0:01:14]}  a5 {[%clk 0:01:20]} 23. Rg3 {[%clk 0:01:11]}  Rd6 {[%clk 0:01:05]} 24. Nh5 {[%clk 0:01:08]}  Bxd4 {[%clk 0:00:21]} 25. Qxf7# {[%clk 0:01:06]} 1-0


[Site "https://www.chess.com"]

[Event "Titled Tuesday Blitz February 22 Late 2022"]
[White "Chincholimath, Halsagar"]
[Black "Levine, David"]
[WhiteFideId "5022487"]
[BlackFideId "2011611"]
[WhiteElo "1737"]
[BlackElo "2159"]
[Result "1-0"]
[Round "10"]
[TimeControl "180+1"]
[Date "2022.02.23"]
[WhiteClock "0:02:39"]
[BlackClock "0:02:35"]

1. e4 {[%clk 0:03:00]}  e5 {[%clk 0:02:59]} 2. Nf3 {[%clk 0:03:00]}  Nc6 {[%clk 0:02:58]} 3. Nc3 {[%clk 0:03:00]}  Nf6 {[%clk 0:02:58]} 4. d4 {[%clk 0:02:59]}  exd4 {[%clk 0:02:57]} 5. Nxd4 {[%clk 0:03:00]}  Bb4 {[%clk 0:02:57]} 6. Nxc6 {[%clk 0:02:59]}  bxc6 {[%clk 0:02:58]} 7. Bd3 {[%clk 0:02:59]}  d5 {[%clk 0:02:58]} 8. Bd2 {[%clk 0:02:59]}  Bxc3 {[%clk 0:02:41]} 9. Bxc3 {[%clk 0:02:58]}  dxe4 {[%clk 0:02:41]} 10. Bxf6 {[%clk 0:02:54]}  Qxf6 {[%clk 0:02:41]} 11. Qe2 {[%clk 0:02:53]}  O-O {[%clk 0:02:36]} 12. Qxe4 {[%clk 0:02:41]}  g5 {[%clk 0:02:35]} 13. Qxh7# {[%clk 0:02:39]} 1-0


[Site "https://www.chess.com"]

[Event "Titled Tuesday Blitz February 22 Late 2022"]
[White "Csonka, Balazs"]
[Black "Chernomordik, Pavel"]
[WhiteFideId "742910"]
[BlackFideId "2804530"]
[WhiteElo "2648"]
[BlackElo "2442"]
[Result "1-0"]
[Round "10"]
[TimeControl "180+1"]
[Date "2022.02.23"]
[WhiteClock "0:00:04"]
[BlackClock "0:00:45"]

1. e4 {[%clk 0:03:00]}  g6 {[%clk 0:02:59]} 2. d4 {[%clk 0:02:58]}  Bg7 {[%clk 0:02:59]} 3. c4 {[%clk 0:02:58]}  Nc6 {[%clk 0:02:58]} 4. Be3 {[%clk 0:02:57]}  e5 {[%clk 0:02:58]} 5. Ne2 {[%clk 0:02:56]}  exd4 {[%clk 0:02:57]} 6. Nxd4 {[%clk 0:02:56]}  Qf6 {[%clk 0:02:58]} 7. Nb5 {[%clk 0:02:02]}  Qxb2 {[%clk 0:02:56]} 8. Nxc7+ {[%clk 0:02:01]}  Kd8 {[%clk 0:02:55]} 9. Nxa8 {[%clk 0:02:01]}  Qxa1 {[%clk 0:02:54]} 10. Be2 {[%clk 0:01:57]}  Qe5 {[%clk 0:02:53]} 11. O-O {[%clk 0:01:33]}  Qb8 {[%clk 0:02:52]} 12. Nb6 {[%clk 0:01:33]}  axb6 {[%clk 0:02:51]} 13. Bxb6+ {[%clk 0:01:34]}  Ke8 {[%clk 0:02:52]} 14. Na3 {[%clk 0:01:30]}  Be5 {[%clk 0:02:42]} 15. g3 {[%clk 0:01:20]}  Bc7 {[%clk 0:02:41]} 16. Bxc7 {[%clk 0:01:17]}  Qxc7 {[%clk 0:02:40]} 17. Nb5 {[%clk 0:01:18]}  Qd8 {[%clk 0:02:15]} 18. Qd6 {[%clk 0:01:00]}  Qe7 {[%clk 0:01:56]} 19. Qc7 {[%clk 0:00:57]}  Qd8 {[%clk 0:01:56]} 20. Nd6+ {[%clk 0:00:52]}  Kf8 {[%clk 0:01:54]} 21. Qxd8+ {[%clk 0:00:51]}  Nxd8 {[%clk 0:01:53]} 22. Nxc8 {[%clk 0:00:51]}  Ne7 {[%clk 0:01:52]} 23. Nd6 {[%clk 0:00:45]}  Nec6 {[%clk 0:01:46]} 24. Rb1 {[%clk 0:00:44]}  Ke7 {[%clk 0:01:39]} 25. Nxb7 {[%clk 0:00:39]}  Nxb7 {[%clk 0:01:37]} 26. Rxb7 {[%clk 0:00:40]}  Ra8 {[%clk 0:01:37]} 27. Rb2 {[%clk 0:00:28]}  Nd4 {[%clk 0:01:34]} 28. Bd1 {[%clk 0:00:21]}  Ra3 {[%clk 0:01:31]} 29. Kg2 {[%clk 0:00:14]}  Rc3 {[%clk 0:01:28]} 30. Bb3 {[%clk 0:00:09]}  Kd6 {[%clk 0:01:21]} 31. c5+ {[%clk 0:00:09]}  Kxc5 {[%clk 0:01:20]} 32. Bxf7 {[%clk 0:00:08]}  g5 {[%clk 0:01:19]} 33. h3 {[%clk 0:00:08]}  Nc6 {[%clk 0:01:09]} 34. Bd5 {[%clk 0:00:07]}  Ne5 {[%clk 0:01:09]} 35. Bb3 {[%clk 0:00:06]}  Nd3 {[%clk 0:01:08]} 36. Rd2 {[%clk 0:00:04]}  Ne1+ {[%clk 0:01:05]} 37. Kf1 {[%clk 0:00:04]}  Nf3 {[%clk 0:01:05]} 38. Rc2 {[%clk 0:00:03]}  Rxc2 {[%clk 0:01:01]} 39. Bxc2 {[%clk 0:00:03]}  Kb4 {[%clk 0:01:00]} 40. Ke2 {[%clk 0:00:03]}  Ne5 {[%clk 0:00:56]} 41. f4 {[%clk 0:00:02]}  gxf4 {[%clk 0:00:56]} 42. gxf4 {[%clk 0:00:03]}  Ng6 {[%clk 0:00:57]} 43. Ke3 {[%clk 0:00:03]}  Kc3 {[%clk 0:00:57]} 44. Bb3 {[%clk 0:00:04]}  d6 {[%clk 0:00:53]} 45. Bf7 {[%clk 0:00:04]}  Ne7 {[%clk 0:00:47]} 46. f5 {[%clk 0:00:04]}  Nc6 {[%clk 0:00:46]} 47. Bd5 {[%clk 0:00:03]}  Ne5 {[%clk 0:00:45]} 48. f6 {[%clk 0:00:04]} 1-0


[Site "https://www.chess.com"]

[Event "Titled Tuesday Blitz February 22 Late 2022"]
[White "Desideri, Ricardo Maruchi"]
[Black "Sarkar, Justin"]
[WhiteFideId "2110440"]
[BlackFideId "2010011"]
[WhiteElo "1945"]
[BlackElo "2038"]
[Result "0-1"]
[Round "10"]
[TimeControl "180+1"]
[Date "2022.02.23"]
[WhiteClock "0:00:02"]
[BlackClock "0:00:01"]

1. e4 {[%clk 0:03:00]}  c5 {[%clk 0:02:55]} 2. Nf3 {[%clk 0:03:00]}  Nc6 {[%clk 0:02:55]} 3. d4 {[%clk 0:03:00]}  cxd4 {[%clk 0:02:55]} 4. Nxd4 {[%clk 0:03:01]}  Nf6 {[%clk 0:02:55]} 5. Nc3 {[%clk 0:03:01]}  d6 {[%clk 0:02:55]} 6. f3 {[%clk 0:02:59]}  g6 {[%clk 0:02:53]} 7. Be3 {[%clk 0:03:00]}  Bg7 {[%clk 0:02:51]} 8. g4 {[%clk 0:02:57]}  h5 {[%clk 0:02:43]} 9. g5 {[%clk 0:02:55]}  Nd7 {[%clk 0:02:40]} 10. f4 {[%clk 0:02:52]}  Nc5 {[%clk 0:02:16]} 11. Qd2 {[%clk 0:02:46]}  h4 {[%clk 0:01:31]} 12. O-O-O {[%clk 0:02:43]}  Bg4 {[%clk 0:01:29]} 13. Re1 {[%clk 0:02:36]}  Ne6 {[%clk 0:01:19]} 14. Bb5 {[%clk 0:02:25]}  Rc8 {[%clk 0:01:18]} 15. f5 {[%clk 0:02:16]}  Nxd4 {[%clk 0:00:17]} 16. Bxd4 {[%clk 0:02:15]}  Bxd4 {[%clk 0:00:15]} 17. Qxd4 {[%clk 0:02:13]}  O-O {[%clk 0:00:14]} 18. Bxc6 {[%clk 0:02:11]}  bxc6 {[%clk 0:00:14]} 19. fxg6 {[%clk 0:02:10]}  fxg6 {[%clk 0:00:14]} 20. Rhf1 {[%clk 0:01:56]}  e5 {[%clk 0:00:10]} 21. Qc4+ {[%clk 0:01:49]}  Kg7 {[%clk 0:00:10]} 22. Nd1 {[%clk 0:01:24]}  Qxg5+ {[%clk 0:00:10]} 23. Kb1 {[%clk 0:01:20]}  Rxf1 {[%clk 0:00:09]} 24. Rxf1 {[%clk 0:01:18]}  Qe7 {[%clk 0:00:08]} 25. Ne3 {[%clk 0:01:15]}  Be6 {[%clk 0:00:09]} 26. Qe2 {[%clk 0:01:11]}  Rf8 {[%clk 0:00:07]} 27. Rg1 {[%clk 0:01:07]}  Rf4 {[%clk 0:00:04]} 28. Qd3 {[%clk 0:00:57]}  Qf7 {[%clk 0:00:04]} 29. Qxd6 {[%clk 0:00:52]}  Bxa2+ {[%clk 0:00:03]} 30. Ka1 {[%clk 0:00:50]}  Be6 {[%clk 0:00:03]} 31. Qxe5+ {[%clk 0:00:48]}  Qf6 {[%clk 0:00:02]} 32. Qxf6+ {[%clk 0:00:31]}  Kxf6 {[%clk 0:00:02]} 33. Nd1 {[%clk 0:00:16]}  Rxe4 {[%clk 0:00:01]} 34. Nc3 {[%clk 0:00:17]}  Re3 {[%clk 0:00:01]} 35. Rf1+ {[%clk 0:00:16]}  Bf5 {[%clk 0:00:02]} 36. Na4 {[%clk 0:00:14]}  Re5 {[%clk 0:00:01]} 37. Nc3 {[%clk 0:00:13]}  Kg7 {[%clk 0:00:01]} 38. Kb1 {[%clk 0:00:13]}  Re3 {[%clk 0:00:02]} 39. Nd1 {[%clk 0:00:12]}  Rh3 {[%clk 0:00:01]} 40. Rf2 {[%clk 0:00:11]}  Bg4 {[%clk 0:00:02]} 41. Nc3 {[%clk 0:00:10]}  Re3 {[%clk 0:00:02]} 42. b3 {[%clk 0:00:09]}  Bf5 {[%clk 0:00:02]} 43. Kb2 {[%clk 0:00:09]}  Re1 {[%clk 0:00:02]} 44. Na4 {[%clk 0:00:07]}  Rh1 {[%clk 0:00:02]} 45. Nc5 {[%clk 0:00:06]}  Bg4 {[%clk 0:00:02]} 46. Ne4 {[%clk 0:00:06]}  g5 {[%clk 0:00:02]} 47. Nxg5 {[%clk 0:00:05]}  Kg6 {[%clk 0:00:03]} 48. Ne4 {[%clk 0:00:05]}  Bf5 {[%clk 0:00:02]} 49. Nc5 {[%clk 0:00:05]}  Re1 {[%clk 0:00:02]} 50. Nd3 {[%clk 0:00:05]}  Re3 {[%clk 0:00:02]} 51. Nb4 {[%clk 0:00:03]}  Rh3 {[%clk 0:00:02]} 52. Nxc6 {[%clk 0:00:03]}  Be4 {[%clk 0:00:01]} 53. Ne5+ {[%clk 0:00:03]}  Kg5 {[%clk 0:00:02]} 54. Nc4 {[%clk 0:00:02]}  Bd5 {[%clk 0:00:01]} 0-1


[Site "https://www.chess.com"]

[Event "Titled Tuesday Blitz February 22 Late 2022"]
[White "Dreev, Aleksey"]
[Black "Sarana, Alexey"]
[WhiteFideId "4100107"]
[BlackFideId "24133795"]
[WhiteElo "2636"]
[BlackElo "2665"]
[Result "1/2-1/2"]
[Round "10"]
[TimeControl "180+1"]
[Date "2022.02.22"]
[WhiteClock "0:00:03"]
[BlackClock "0:00:03"]

1. d4 {[%clk 0:03:00]}  Nf6 {[%clk 0:02:58]} 2. c4 {[%clk 0:03:01]}  e6 {[%clk 0:02:59]} 3. Nc3 {[%clk 0:03:00]}  Bb4 {[%clk 0:02:58]} 4. Qc2 {[%clk 0:03:01]}  d5 {[%clk 0:02:57]} 5. a3 {[%clk 0:03:01]}  Bxc3+ {[%clk 0:02:53]} 6. Qxc3 {[%clk 0:03:02]}  O-O {[%clk 0:02:51]} 7. Nf3 {[%clk 0:03:01]}  dxc4 {[%clk 0:02:49]} 8. Qxc4 {[%clk 0:03:01]}  b6 {[%clk 0:02:49]} 9. Bg5 {[%clk 0:03:01]}  Ba6 {[%clk 0:02:48]} 10. Qa4 {[%clk 0:03:01]}  Qd7 {[%clk 0:02:48]} 11. Qxd7 {[%clk 0:02:49]}  Nbxd7 {[%clk 0:02:49]} 12. Bxf6 {[%clk 0:02:42]}  Nxf6 {[%clk 0:02:45]} 13. e3 {[%clk 0:02:40]}  Bb7 {[%clk 0:02:44]} 14. Be2 {[%clk 0:02:35]}  Rac8 {[%clk 0:02:42]} 15. Rc1 {[%clk 0:02:34]}  c5 {[%clk 0:02:31]} 16. dxc5 {[%clk 0:02:34]}  Ne4 {[%clk 0:02:32]} 17. b4 {[%clk 0:02:29]}  bxc5 {[%clk 0:02:31]} 18. b5 {[%clk 0:02:29]}  Bd5 {[%clk 0:02:30]} 19. Ne5 {[%clk 0:02:22]}  Nd6 {[%clk 0:02:17]} 20. f3 {[%clk 0:02:13]}  Rc7 {[%clk 0:02:06]} 21. e4 {[%clk 0:02:12]}  Bb3 {[%clk 0:02:06]} 22. Kf2 {[%clk 0:01:39]}  c4 {[%clk 0:02:05]} 23. Bd1 {[%clk 0:01:39]}  Nxb5 {[%clk 0:01:40]} 24. a4 {[%clk 0:01:36]}  Nd4 {[%clk 0:00:36]} 25. Bxb3 {[%clk 0:01:23]}  Nxb3 {[%clk 0:00:36]} 26. Rxc4 {[%clk 0:01:24]}  Rxc4 {[%clk 0:00:36]} 27. Nxc4 {[%clk 0:01:24]}  Rc8 {[%clk 0:00:37]} 28. Rd1 {[%clk 0:01:24]}  g5 {[%clk 0:00:34]} 29. Ne5 {[%clk 0:01:19]}  Rc5 {[%clk 0:00:33]} 30. Ng4 {[%clk 0:01:14]}  Rc2+ {[%clk 0:00:31]} 31. Kg3 {[%clk 0:01:11]}  Kg7 {[%clk 0:00:26]} 32. h4 {[%clk 0:01:08]}  gxh4+ {[%clk 0:00:19]} 33. Kh3 {[%clk 0:01:09]}  Nd2 {[%clk 0:00:16]} 34. Ne3 {[%clk 0:01:02]}  Ra2 {[%clk 0:00:16]} 35. Kxh4 {[%clk 0:01:00]}  Nb3 {[%clk 0:00:15]} 36. Rd7 {[%clk 0:00:54]}  Rxa4 {[%clk 0:00:15]} 37. Ng4 {[%clk 0:00:54]}  Ra5 {[%clk 0:00:15]} 38. f4 {[%clk 0:00:54]}  Nc5 {[%clk 0:00:15]} 39. Rd4 {[%clk 0:00:53]}  f6 {[%clk 0:00:14]} 40. Rc4 {[%clk 0:00:52]}  Rb5 {[%clk 0:00:14]} 41. e5 {[%clk 0:00:51]}  fxe5 {[%clk 0:00:13]} 42. fxe5 {[%clk 0:00:47]}  a5 {[%clk 0:00:13]} 43. Nf6 {[%clk 0:00:47]}  a4 {[%clk 0:00:13]} 44. Ne8+ {[%clk 0:00:44]}  Kf8 {[%clk 0:00:11]} 45. Nc7 {[%clk 0:00:45]}  Rb7 {[%clk 0:00:04]} 46. Rxc5 {[%clk 0:00:44]}  a3 {[%clk 0:00:04]} 47. Nxe6+ {[%clk 0:00:41]}  Ke7 {[%clk 0:00:04]} 48. Nf4 {[%clk 0:00:39]}  Rb4 {[%clk 0:00:04]} 49. g3 {[%clk 0:00:36]}  Ra4 {[%clk 0:00:05]} 50. Rc1 {[%clk 0:00:36]}  Ra5 {[%clk 0:00:05]} 51. e6 {[%clk 0:00:35]}  a2 {[%clk 0:00:04]} 52. Ra1 {[%clk 0:00:35]}  Kf6 {[%clk 0:00:04]} 53. Kg4 {[%clk 0:00:36]}  Ra3 {[%clk 0:00:05]} 54. Kh3 {[%clk 0:00:34]}  Ke7 {[%clk 0:00:04]} 55. Kg2 {[%clk 0:00:33]}  h5 {[%clk 0:00:04]} 56. Kf2 {[%clk 0:00:32]}  Kf6 {[%clk 0:00:05]} 57. Nxh5+ {[%clk 0:00:31]}  Kxe6 {[%clk 0:00:05]} 58. Nf4+ {[%clk 0:00:31]}  Kf5 {[%clk 0:00:05]} 59. Ne2 {[%clk 0:00:30]}  Kg4 {[%clk 0:00:06]} 60. Kg2 {[%clk 0:00:30]}  Ra8 {[%clk 0:00:04]} 61. Kf2 {[%clk 0:00:30]}  Ra3 {[%clk 0:00:04]} 62. Ke1 {[%clk 0:00:28]}  Kf3 {[%clk 0:00:03]} 63. Kd2 {[%clk 0:00:27]}  Ra8 {[%clk 0:00:03]} 64. Kd1 {[%clk 0:00:24]}  Rd8+ {[%clk 0:00:03]} 65. Ke1 {[%clk 0:00:24]}  Ra8 {[%clk 0:00:04]} 66. Kf1 {[%clk 0:00:21]}  Ra3 {[%clk 0:00:04]} 67. g4 {[%clk 0:00:18]}  Kxg4 {[%clk 0:00:04]} 68. Kf2 {[%clk 0:00:19]}  Kf5 {[%clk 0:00:04]} 69. Nd4+ {[%clk 0:00:19]}  Ke4 {[%clk 0:00:04]} 70. Nc2 {[%clk 0:00:19]}  Rh3 {[%clk 0:00:04]} 71. Rxa2 {[%clk 0:00:18]}  Rh2+ {[%clk 0:00:05]} 72. Ke1 {[%clk 0:00:18]}  Rh1+ {[%clk 0:00:04]} 73. Kd2 {[%clk 0:00:19]}  Rh2+ {[%clk 0:00:05]} 74. Kc3 {[%clk 0:00:19]}  Rh3+ {[%clk 0:00:06]} 75. Kc4 {[%clk 0:00:19]}  Rh8 {[%clk 0:00:07]} 76. Nb4 {[%clk 0:00:18]}  Rc8+ {[%clk 0:00:08]} 77. Kb5 {[%clk 0:00:18]}  Rb8+ {[%clk 0:00:08]} 78. Kc5 {[%clk 0:00:19]}  Rc8+ {[%clk 0:00:08]} 79. Nc6 {[%clk 0:00:19]}  Rh8 {[%clk 0:00:08]} 80. Ra4+ {[%clk 0:00:20]}  Kd3 {[%clk 0:00:08]} 81. Ne5+ {[%clk 0:00:20]}  Ke3 {[%clk 0:00:09]} 82. Ng4+ {[%clk 0:00:19]}  Kd3 {[%clk 0:00:09]} 83. Nf6 {[%clk 0:00:19]}  Rc8+ {[%clk 0:00:08]} 84. Kd5 {[%clk 0:00:19]}  Rd8+ {[%clk 0:00:09]} 85. Ke5 {[%clk 0:00:20]}  Rb8 {[%clk 0:00:09]} 86. Ra3+ {[%clk 0:00:19]}  Ke2 {[%clk 0:00:09]} 87. Ne4 {[%clk 0:00:18]}  Re8+ {[%clk 0:00:10]} 88. Kf5 {[%clk 0:00:18]}  Rf8+ {[%clk 0:00:10]} 89. Nf6 {[%clk 0:00:18]}  Kd2 {[%clk 0:00:10]} 90. Ke5 {[%clk 0:00:18]}  Kc2 {[%clk 0:00:11]} 91. Rh3 {[%clk 0:00:17]}  Kd2 {[%clk 0:00:11]} 92. Nd5 {[%clk 0:00:16]}  Re8+ {[%clk 0:00:10]} 93. Kd4 {[%clk 0:00:17]}  Ke2 {[%clk 0:00:11]} 94. Rh2+ {[%clk 0:00:15]}  Kf3 {[%clk 0:00:11]} 95. Rh7 {[%clk 0:00:14]}  Rd8 {[%clk 0:00:09]} 96. Rf7+ {[%clk 0:00:14]}  Ke2 {[%clk 0:00:09]} 97. Rf6 {[%clk 0:00:13]}  Re8 {[%clk 0:00:08]} 98. Rf7 {[%clk 0:00:11]}  Rd8 {[%clk 0:00:08]} 99. Ra7 {[%clk 0:00:10]}  Re8 {[%clk 0:00:08]} 100. Ra3 {[%clk 0:00:10]}  Kf2 {[%clk 0:00:08]} 101. Nf6 {[%clk 0:00:10]}  Rd8+ {[%clk 0:00:08]} 102. Ke4 {[%clk 0:00:10]}  Rf8 {[%clk 0:00:08]} 103. Ng4+ {[%clk 0:00:10]}  Ke1 {[%clk 0:00:08]} 104. Ra2 {[%clk 0:00:08]}  Re8+ {[%clk 0:00:08]} 105. Kf4 {[%clk 0:00:09]}  Kd1 {[%clk 0:00:08]} 106. Ne3+ {[%clk 0:00:08]}  Ke1 {[%clk 0:00:08]} 107. Rh2 {[%clk 0:00:07]}  Rf8+ {[%clk 0:00:08]} 108. Ke5 {[%clk 0:00:06]}  Re8+ {[%clk 0:00:08]} 109. Kd4 {[%clk 0:00:07]}  Rd8+ {[%clk 0:00:08]} 110. Nd5 {[%clk 0:00:06]}  Kd1 {[%clk 0:00:07]} 111. Rg2 {[%clk 0:00:06]}  Ke1 {[%clk 0:00:08]} 112. Ke3 {[%clk 0:00:06]}  Kf1 {[%clk 0:00:06]} 113. Nf4 {[%clk 0:00:05]}  Re8+ {[%clk 0:00:05]} 114. Kf3 {[%clk 0:00:05]}  Ke1 {[%clk 0:00:05]} 115. Rh2 {[%clk 0:00:05]}  Kd1 {[%clk 0:00:05]} 116. Nd3 {[%clk 0:00:04]}  Re3+ {[%clk 0:00:03]} 117. Kxe3 {[%clk 0:00:03]} 1/2-1/2


[Site "https://www.chess.com"]